Cogmind - Beta 9 @@@ ROGUE MODE // 2019.10.20 @ 09:23:15 Player: muxecoid Result: Destroyed by D-53 Grenadier with Mini Grenade Launcher Performance ------------- Evolutions (0) 0 Regions Visited (4) 800 Robots Destroyed (12) 60 Value Destroyed (80) 80 Prototype IDs (0) 0 Alien Tech Used (0) 0 Bonus (0) 0 TOTAL SCORE: 940 Bonus ------- None Cogmind --------- Core Integrity 0/250 Matter 178/300 Energy 125/125 System Corruption 2% Temperature Cool (0) Location -9/Mines Parts ------- Power (1) Light Ion Engine Propulsion (2) Compact Wheel Utility (2) Medium Storage Unit Medium Storage Unit Weapon (2) Rocket Launcher Inventory (12) Aluminum Leg Aluminum Leg Medium Storage Unit Large Storage Unit Large Storage Unit Hacking Suite Mining Laser Peak State ------------ Power Light Nuclear Core Propulsion Light Treads Compact Wheel Utility Medium Storage Unit Medium Storage Unit Weapon Light Assault Rifle Rocket Launcher Inventory Light Ion Engine Aluminum Leg Aluminum Leg Medium Storage Unit Large Storage Unit Large Storage Unit Hacking Suite Light Assault Rifle Mining Laser [Rating: 11] Favorites ----------- Power Light Ion Engine Engine Light Ion Engine Power Core Light Nuclear Core Propulsion Compact Wheel Treads Light Treads Wheel Compact Wheel Utility Medium Storage Unit Storage Medium Storage Unit Weapon Light Assault Rifle Energy Gun Small Laser Ballistic Gun Light Assault Rifle Launcher Rocket Launcher Build | -11 -10 -10 -10 -9 ------- Run | Scr Mat Min Exi Min Slots Evolved . | . . . . . Power . | . . . . . Propulsion . | . . . . . Utility . | . . . . . Weapon . | . . . . . Parts Attached 18 | 6 2 6 . 4 Power 3 | 1 . 1 . 1 Engine 2 | 1 . . . 1 Core 1 | . . 1 . . Reactor . | . . . . . Propulsion 4 | 2 . 2 . . Treads 1 | . . 1 . . Leg . | . . . . . Wheel 3 | 2 . 1 . . Hover . | . . . . . Flight . | . . . . . Utility 3 | 1 2 . . . Device . | . . . . . Storage 3 | 1 2 . . . Processor . | . . . . . Hackware . | . . . . . Protection . | . . . . . Artifact . | . . . . . Weapon 8 | 2 . 3 . 3 Energy Gun 1 | . . 1 . . Energy Cannon . | . . . . . Ballistic Gun 5 | 2 . 2 . 1 Ballistic Cannon . | . . . . . Launcher 2 | . . . . 2 Special Weapon . | . . . . . Impact Weapon . | . . . . . Slashing Weapon . | . . . . . Piercing Weapon . | . . . . . Special Melee Weapon . | . . . . . Unidentified Prototypes . | . . . . . Parts Lost 10 | . . 6 . 4 Power 2 | . . 1 . 1 Propulsion 3 | . . 2 . 1 Utility . | . . . . . Weapon 5 | . . 3 . 2 Highest Loss Streak 4 | . . 3 . 4 Average Slot Usage (%) 89 | . 95 83 100 98 Engine 9 | . 14 12 . . Core 3 | . . . 14 12 Treads 4 | . . . 14 14 Wheel 21 | . 28 23 14 14 Storage 27 | . 23 28 28 28 Energy Gun 6 | . . 10 . . Ballistic Gun 15 | . 28 6 28 26 Naked Turns . | . . . . . Heaviest Build 26 | 10 22 23 23 26 Greatest Support 32 | 26 26 32 16 16 Greatest Overweight (x) 1 | . . 1 1 1 Average Overweight (x) . | . . . 1 1 Largest Inventory Capacity 12 | 6 12 12 12 12 Average Capacity 11 | 5 9 12 12 12 Most Carried 9 | 2 6 8 8 9 Average Carried 6 | . 2 6 7 8 Final Capacity 12 | . . . . 12 Final Carried 7 | . . . . 7 Class Distribution -------------------- 100% | Mutant Dominant Class ---------------- Mutant | -10/Materials Mutant | -10/Mines Mutant | -10/Exiles Mutant | -9/Mines Resources | -11 -10 -10 -10 -9 ----------- Run | Scr Mat Min Exi Min Matter Collected 369 | 168 . 201 . . Remotely . | . . . . . Salvage Created 138 | . 18 88 . 32 Parts 13 | . 4 9 . . Haulers Intercepted . | . . . . . Recyclers Shooed . | . . . . . Parts Field Recycled . | . . . . . Retrieved Matter . | . . . . . Parts Self-Destructed . | . . . . . Prevented . | . . . . . Kills | -11 -10 -10 -10 -9 ------- Run | Scr Mat Min Exi Min Combat Hostiles Destroyed 11 | . . 4 . 7 Melee 1 | . . 1 . . Guns 4 | . . 3 . 1 AOE 6 | . . . . 6 Classes Destroyed 4 | . 1 2 . 1 Operator 1 | . 1 . . . Swarmer 3 | . . 3 . . Grunt 1 | . . 1 . . Assembled 7 | . . . . 7 Best Kill Streak 7 | . 1 3 . 7 Combat Bots Only 7 | . . 3 . 7 Max Kills in Single Turn 2 | . 1 1 . 2 Gunslinging . | . . . . . Exploded 2 | . . . . 2 Melee 1 | . . 1 . . Uniques/NPCs Destroyed . | . . . . . Combat | -11 -10 -10 -10 -9 -------- Run | Scr Mat Min Exi Min Damage Taken 1066 | . . 474 . 592 Core 256 | . . 74 . 182 Absorbed by Shields . | . . . . . Core Remaining (%) 100 | 100 . . . . Volleys Fired 41 | . 3 26 . 12 Largest 2 | . 2 2 . 2 Hottest 60 | . 40 60 . 40 Shots Fired 62 | . 6 39 . 17 Gun 55 | . 6 39 . 10 Cannon . | . . . . . Launcher 7 | . . . . 7 Special . | . . . . . Kinetic 37 | . 6 21 . 10 Thermal 18 | . . 18 . . Explosive 7 | . . . . 7 Electromagnetic . | . . . . . Robot Hit Streak 6 | . . 3 . 6 Robot Miss Streak 8 | . 6 8 . 3 Penetration Max . | . . . . . Secondary Targets 1 | . . . . 1 Max Gunslinging Chain 1 | . . . . 1 Shots Hit Robots 27 | . . 17 . 10 Core Hits 30 | . 2 8 . 20 Critical Hits . | . . . . . Critical Kills . | . . . . . Critical Parts Destroyed . | . . . . . Melee Attacks . | . . . . . Impact . | . . . . . Slashing . | . . . . . Piercing . | . . . . . Sneak Attacks . | . . . . . Combat Hostiles . | . . . . . Follow-up Attacks . | . . . . . Damage Inflicted 678 | . 20 211 . 447 Guns 250 | . 20 189 . 41 Cannons . | . . . . . Explosions 406 | . . . . 406 Melee . | . . . . . Ramming 22 | . . 22 . . Kinetic 186 | . 20 125 . 41 Thermal 64 | . . 64 . . Explosive 406 | . . . . 406 Electromagnetic . | . . . . . Impact . | . . . . . Slashing . | . . . . . Piercing . | . . . . . Highest Corruption 2 | . 1 2 2 2 Average Corruption 1 | . 1 1 2 2 Corruption Purged . | . . . . . Effects 4 | . 1 2 . 1 Energy Discharges 2 | . . 1 . 1 Data Loss (minor) 2 | . 1 1 . . Overload Shots . | . . . . . Overflow Damage . | . . . . . Projectiles . | . . . . . Explosions . | . . . . . Melee . | . . . . . Knockbacks . | . . . . . Impact . | . . . . . Kinetic . | . . . . . Secondary . | . . . . . Self-Inflicted Damage 23 | . . 9 . 14 Shots 1 | . . . . 1 Rammed 6 | . . 6 . . Targets Rammed 6 | . . 6 . . Kicked . | . . . . . Crushed . | . . . . . Highest Temperature 66 | . . 66 . 6 Average Temperature 31 | . . 36 . 3 Received Heat Transfer 195 | . . 195 . . Siege Activations . | . . . . . Robots Corrupted . | . . . . . Combat Hostiles . | . . . . . Parts Fried . | . . . . . Impact Corruptions . | . . . . . Robots Melted . | . . . . . Combat Hostiles . | . . . . . Parts Melted . | . . . . . Heat Transferred 150 | . . 150 . . Parts Sabotaged . | . . . . . Parts Stolen . | . . . . . Parts Stripped . | . . . . . Power Chain Reactions . | . . . . . Missiles Intercepted . | . . . . . Alert | -11 -10 -10 -10 -9 ------- Run | Scr Mat Min Exi Min Peak Influence 42 | . 42 40 . . Average Influence 16 | . 30 17 . . Maximum Alert Level . | . . . . . Low Security (%) 100 | . . . . . Level 1 . | . . . . . Level 2 . | . . . . . Level 3 . | . . . . . Level 4 . | . . . . . Level 5 . | . . . . . High Security . | . . . . . Max Security . | . . . . . Squads Dispatched 3 | . 3 . . . Investigation 1 | . 1 . . . Extermination . | . . . . . Reinforcement 2 | . 2 . . . Assault . | . . . . . Garrison . | . . . . . Intercept . | . . . . . Construction Impeded . | . . . . . Haulers Reinforced . | . . . . . Stealth | -11 -10 -10 -10 -9 --------- Run | Scr Mat Min Exi Min Distress Signals . | . . . . . Communications Jammed . | . . . . . Distress Signals . | . . . . . Times Spotted 21 | . 4 7 . 10 Peak Tracking Total 7 | . 3 3 . 7 Tactical Retreats 3 | . . 3 . . Traps | -11 -10 -10 -10 -9 ------- Run | Scr Mat Min Exi Min Traps Triggered 2 | . 2 . . . Indirectly . | . . . . . Trap Hack Attempts . | . . . . . Triggered . | . . . . . Disarmed . | . . . . . Reprogrammed . | . . . . . Reused . | . . . . . Traps Extracted . | . . . . . Installed . | . . . . . Triggered . | . . . . . Machines | -11 -10 -10 -10 -9 ---------- Run | Scr Mat Min Exi Min Machines Disabled . | . . . . . Max in Single Turn . | . . . . . Machines Sabotaged . | . . . . . Garrisons Compromised . | . . . . . Overloaded Fab Kills . | . . . . . Fab Network Shutdowns . | . . . . . Hacking | -11 -10 -10 -10 -9 --------- Run | Scr Mat Min Exi Min Machines Accessed 2 | . 1 . 1 . Terminals 1 | . 1 . . . Fabricators . | . . . . . Repair Stations . | . . . . . Recycling Units . | . . . . . Scanalyzers . | . . . . . Garrison Access . | . . . . . Total Hacks 5 | . 1 . 4 . Successful 5 | . 1 . 4 . Failed . | . . . . . Catastrophic . | . . . . . Database Lockouts . | . . . . . Manual . | . . . . . Terminals 1 | . 1 . . . Fabricators . | . . . . . Repair Stations . | . . . . . Recycling Units . | . . . . . Scanalyzers . | . . . . . Garrison Access . | . . . . . Terminal Hacks 5 | . 1 . 4 . Record 4 | . . . 4 . Branch Access Points 1 | . 1 . . . Fabricator Hacks . | . . . . . Repair Station Hacks . | . . . . . Recycling Unit Hacks . | . . . . . Scanalyzer . | . . . . . Garrison Access Hacks . | . . . . . Unauthorized Hacks . | . . . . . Terminals . | . . . . . Fabricators . | . . . . . Repair Stations . | . . . . . Recycling Units . | . . . . . Scanalyzers . | . . . . . Garrison Access . | . . . . . Data Cores Recovered . | . . . . . Used . | . . . . . Hacking Detections . | . . . . . Full Trace Events . | . . . . . Feedback Events . | . . . . . Feedback Blocked . | . . . . . Robot Schematics Acquired . | . . . . . Robots Built . | . . . . . Matter . | . . . . . Time . | . . . . . Total Robot Build Rating . | . . . . . Part Schematics Acquired . | . . . . . Parts Built . | . . . . . Matter . | . . . . . Time . | . . . . . Total Part Build Rating . | . . . . . Parts Repaired . | . . . . . Time . | . . . . . Parts Recycled . | . . . . . Recycled Matter . | . . . . . Retrieved Matter . | . . . . . Retrieved Components . | . . . . . Parts Scanalyzed . | . . . . . Part Schematics Acquired . | . . . . . Parts Damaged . | . . . . . Bothacking | -11 -10 -10 -10 -9 ------------ Run | Scr Mat Min Exi Min Used RIF Installer . | . . . . . Robots Hacked . | . . . . . Non-combat . | . . . . . Combat . | . . . . . Robot Hacks Applied . | . . . . . Relay Couplers Released . | . . . . . Robots Rewired . | . . . . . Allies Hacked . | . . . . . Hacks Repelled . | . . . . . Allies | -11 -10 -10 -10 -9 -------- Run | Scr Mat Min Exi Min Total Allies . | . . . . . Largest Group . | . . . . . Highest-Rated Group . | . . . . . Highest-Rated Ally . | . . . . . Total Orders . | . . . . . Ally Attacks . | . . . . . Total Damage . | . . . . . Kills . | . . . . . Allies Corrupted . | . . . . . Allies Melted . | . . . . . Intel | -11 -10 -10 -10 -9 ------- Run | Scr Mat Min Exi Min Robot Analysis Total . | . . . . . Derelict Logs Recovered 1 | . . 1 . . Drone Launches . | . . . . . Drone Recoveries . | . . . . . Exploration | -11 -10 -10 -10 -9 ------------- Run | Scr Mat Min Exi Min Turns Passed 907 | 38 126 503 160 80 Spaces Moved 748 | 32 121 406 145 44 Core 3 | 3 . . . . Treads . | . . . . . Legs . | . . . . . Wheels 745 | 29 121 406 145 44 Hover . | . . . . . Flight . | . . . . . Fastest Speed 50 | 50 90 90 110 110 Average Speed 101 | 86 90 101 110 110 Slowest Speed 110 | 100 90 110 110 110 Overloaded Moves . | . . . . . Propulsion Burnouts . | . . . . . Robots Hopped . | . . . . . Cave-ins Triggered . | . . . . . Exploration Rate (%) 34 | 4 29 75 50 12 Regions Visited 4 Branch Regions 3 Pre-discovered Areas 1 | . . . 1 . Known Exits Taken 1 | . 1 . . . Unknown Exits Taken 3 | 1 . 1 1 . Scrap Searched 2 | . . 2 . . Spaces Dug . | . . . . . Terrain Destroyed 46 | . . . . 46 Melee . | . . . . . Projectile . | . . . . . AOE 46 | . . . . 46 Actions | -11 -10 -10 -10 -9 --------- Run | Scr Mat Min Exi Min Total 835 | 39 132 458 145 61 Wait 13 | . 2 11 . . Move 744 | 31 120 405 144 44 Hop . | . . . . . Pick Up 12 | 2 4 4 1 1 Fast Attach 10 | 6 1 3 . . Attach 5 | . . 3 . 2 Detach . | . . . . . Swap 3 | . 1 . . 2 Drop 1 | . 1 . . . Fire 41 | . 3 26 . 12 Melee . | . . . . . Ram 6 | . . 6 . . Kick . | . . . . . Crush . | . . . . . Escape Stasis . | . . . . . Rewire . | . . . . . Trap . | . . . . . Miscellaneous . | . . . . . Route ------- -11/Scrapyard -10/Materials -10/Mines (discovered 2 exits: [*Mat] / *Exi) -10/Exiles -9/Mines History --------- Turn | Location | Event 16 | -11/Scrapyard | Discovered new exit (range 16) 39 | -11/Scrapyard | Entered Materials 43 | -10/Materials | Identified exit to Mines 165 | -10/Materials | Entered Mines 177 | -10/Mines | Met a Derelict bent on vengeance 291 | -10/Mines | Discovered new exit (range 15) 296 | -10/Mines | Lost 3 parts (1n2w) 305 | -10/Mines | Build established: Mutant 315 | -10/Mines | Learned 4 Materials zone layouts 662 | -10/Mines | Deemed a non-threat by the Exiles lab entrance 663 | -10/Mines | Lost 3 parts (1p1n1w) 663 | -10/Mines | Discovered new exit (range 5) 668 | -10/Mines | Entered Exiles 695 | -10/Exiles | Met 8R-AWN 715 | -10/Exiles | Met EX-HEX 747 | -10/Exiles | Met EX-BIN 760 | -10/Exiles | Met EX-DEC 765 | -10/Exiles | Learned location of Zion (-7) 819 | -10/Exiles | Discovered new exit (range 10) 828 | -10/Exiles | Entered Mines 834 | -9/Mines | Assembled infested the area 842 | -9/Mines | Received a Rocket Launcher from a helpful Derelict 859 | -9/Mines | Core integrity fell below 50% 880 | -9/Mines | Destroyed 7 combat bots 908 | -9/Mines | Destroyed by D-53 Grenadier with Mini Grenade Launcher Last Messages --------------- laser wimps, I say!" 00842_ MS-EX8(g): "Would you like a rocket launcher? I know I would if I were you, so I'm going to lend you mine." 00842_ MS-EX8(g) slips back into the shadows. 00845_ Acquired Rocket Launcher. 00849_ as-78664 destroyed. 00854_ as-55667 destroyed. 00854_ as-24723 destroyed. 00856_ as-73003 destroyed. 00856_ as-62391 destroyed. 00859_ as-96443 destroyed. 00859_ Switching to secondary target: as-05964. 00864_ as-05964 destroyed. 00870_ The unstable cave ceiling collapses. 00878_ System corrupted: Energy discharge (-48). 00885_ The unstable cave ceiling collapses. 00899_ Lgt. Nuclear Core destroyed. 00900_ The unstable cave ceiling collapses. 00902_ Lgt. Assault Rifle destroyed. 00905_ Lgt. Treads destroyed. Map ----- +----------------------------------------------------+ | | | | | | | | | | | | | | | | | | | | | | | ??????????????????????????????????????????? | | ??????????????????????????????????????????? | | ??????????????????????????????????????????? | | ???????????????????###????????????????????? | | ??????? ??????????## ##???????????????????? | | ????? ????????# #??????????####?????? | | ??????# ####### ##????????## ##????? | | ???????# ##??????## #????? | | ???????## ####??## #????? | | ???????## #### ##????? | | ????# ##?????? | | ?????# d ##??????? | | ?????# d # #???????? | | ????? # % # # #???????? | | ?????? @ ## #???????? | | ?????? ## # ## #???????? | | ?????? ####????# ## #???????? | | ??????? ????????## ### #???????? | | ??????? ???????????## ##?# #???????? | | ???????? ?????????????## ####??# #???????? | | ???????????????????????# #?????# #???????? | | ???????????????????????# #?????# #???????? | | ???????????????????????# #?????# #???????? | | ???????????????????????# ?????? ???????? | | ???????????????????????###?????? ???????? | | ???????????????????????????????? ???????? | | ????????????????????????????????# ???????? | | ??????????????????????????????????????????? | | ??????????????????????????????????????????? | | ??????????????????????????????????????????? | | ??????????????????????????????????????????? | | ??????????????????????????????????????????? | | ??????????????????????????????????????????? | | ??????????????????????????????????????????? | | ??????????????????????????????????????????? | | ??????????????????????????????????????????? | | ??????????????????????????????????????????? | | ??????????????????????????????????????????? | | ??????????????????????????????????????????? | +----------------------------------------------------+ Best States ------------- Heat Dissipation 25 Energy Generation 14 Energy Capacity 160 Matter Stores 300 Matter Capacity 300 Sight Range 16 Terrain Scan Density 10 Evasion (%) 42 Recoil Reduction 1 Item Schematics ----------------- None Robot Schematics ------------------ None Fabricated ------------ Nothing Alien Tech Used ----------------- None Achievements -------------- None Challenges ------------ None Game ------ Seed ParticleProcessingSegregator Manual? 0 Play Time 00:11:01 Cumulative 143.5 hours Start 2019.10.20 @ 09:13:31 End 2019.10.20 @ 09:23:15 Sessions 1 Manual Loads 0 Difficulty Rogue Special Mode None Game No. 88 Rogue 88 Adventurer 0 Explorer 0 Win Type - Total 5 Types 4/0/0/1/0/0/0 Lore% 59 Gallery% 74 Achievement% 55 Wizard Run 0 Options --------- ASCII 0 Keyboard 0 Movement Mouse Keybinds 0 Fullscreen 1 Font 18/X11 Map View 76x50 Tactical HUD 1 Map Filters NONE Filters NONE Steam 1 RUN: 10ec2186-8e53-4c44-820e-0512dc9f6bd1